bitfinex-derivatives/quotes_SOLF0:USTF0_20241226
["timestamp","ask_amount","ask_price","bid_price","bid_amount"]
[1735179263174,7.09312766,197.43,197.33,7.09312766]
[1735179263381,2.535,197.39,197.33,9.62882766]
[1735179263678,7.09312766,197.41,197.33,7.09312766]
[1735179263873,2.5351,197.38,197.33,7.09312766]
[1735179265480,2.5351,197.38,197.33,9.62872766]
[1735179273884,2.5351,197.38,197.33,7.09312766]
[1735179274086,2.5351,197.38,197.33,9.62882766]
[1735179275784,2.5352,197.37,197.33,9.62882766]
[1735179279578,2.5353,197.36,197.33,7.09312766]
[1735179281683,2.5351,197.38,197.35,7.09312766]
[1735179281880,3.16,197.44,197.29,1.5796]
[1735179281881,7.09312766,197.37,197.29,1.5796]
[1735179282082,7.09312766,197.37,197.29,8.67272766]
[1735179282385,2.5357,197.33,197.29,11.20882766]
[1735179283488,2.5357,197.33,197.29,8.67272766]
[1735179283689,2.5357,197.33,197.3,2.536]
[1735179284791,2.5355,197.35,197.3,2.536]
[1735179285591,2.5356,197.34,197.3,2.536]
[1735179288487,7.09312766,197.37,197.29,7.09312766]
[1735179288694,2.5359,197.33,197.29,9.62942766]
[1735179290788,2.5358,197.34,197.3,2.5362]
[1735179291586,2.5359,197.33,197.3,2.5362]
[1735179292085,2.5359,197.33,197.29,2.5364]
[1735179292391,7.09312766,197.35,197.28,10.42992766]
[1735179292597,7.09312766,197.33,197.28,3.3368]
[1735179292894,7.09312766,197.29,197.21,7.09312766]
[1735179293093,7.09312766,197.29,197.21,8.70732766]
[1735179293293,2.537,197.26,197.21,11.24472766]
[1735179293889,2.537,197.26,197.22,2.5373]
[1735179294089,7.09312766,197.29,197.22,2.5373]
[1735179294293,2.5367,197.27,197.22,2.5373]
[1735179294898,2.5366,197.28,197.23,9.63022766]
[1735179295295,7.0232655,197.32,197.23,7.09312766]
[1735179295497,7.0232655,197.32,197.26,2.5368]
[1735179295498,2.5364,197.3,197.26,2.5368]
[1735179298107,2.5368,197.27,197.22,2.5373]
[1735179298699,28.08657145,197.33,197.25,7.09312766]
[1735179298906,28.08657145,197.33,197.31,7.09312766]
[1735179299698,2.5354,197.37,197.31,9.62932766]
[1735179299904,28.08657145,197.38,197.33,7.09312766]
[1735179300099,28.08657145,197.38,197.3,3.16]
[1735179300306,28.08657145,197.38,197.35,7.09312766]
[1735179300707,7.09312766,197.42,197.35,7.09312766]
[1735179300906,7.09312766,197.42,197.33,9.62902766]
[1735179301407,2.5352,197.39,197.33,9.62902766]
[1735179302009,7.09312766,197.42,197.33,2.5359]
[1735179302208,7.09312766,197.38,197.31,2.5361]
[1735179302410,7.09312766,197.38,197.31,9.62922766]
[1735179302611,7.09312766,197.38,197.31,7.09312766]
[1735179302811,2.5357,197.35,197.31,7.09312766]
[1735179304511,2.5356,197.36,197.31,7.09312766]
[1735179304710,7.09312766,197.38,197.27,3.16]
[1735179304711,7.09312766,197.4,197.33,7.09312766]
[1735179306411,2.5353,197.39,197.34,2.5358]
[1735179306617,3.1484,197.45,197.33,7.09312766]
[1735179306817,7.09312766,197.42,197.33,7.09312766]
[1735179307210,7.09312766,197.42,197.36,2.5355]
[1735179307412,7.09312766,197.42,197.35,7.09312766]
[1735179307713,2.5349,197.41,197.35,7.09312766]
[1735179307909,7.09312766,197.4,197.26,3.2729]
[1735179308111,7.09312766,197.38,197.29,7.09312766]
[1735179308415,2.5357,197.36,197.3,2.5362]
[1735179308614,7.09312766,197.34,197.28,1.6494]
[1735179308913,2.536,197.33,197.27,2.5366]
[1735179309117,7.09312766,197.34,197.27,2.5366]
[1735179309419,7.09312766,197.32,197.26,1.6665]
[1735179309613,2.5364,197.3,197.26,1.6665]
[1735179309810,2.5364,197.3,197.25,1.6494]
[1735179310010,7.09312766,197.32,197.25,1.6494]
[1735179310319,2.5363,197.31,197.25,1.6494]
[1735179310816,7.09312766,197.3,197.21,7.09312766]
[1735179311012,7.09312766,197.26,197.2,1.5454]
[1735179311209,7.09312766,197.24,197.1,1.537]
[1735179311514,7.09312766,197.22,197.15,7.09312766]
[1735179312112,2.5374,197.22,197.15,2.5381]
[1735179312805,2.5375,197.21,197.14,2.5384]
[1735179313516,2.5373,197.23,197.16,2.5381]
[1735179314416,11.11973052,197.25,197.12,11.11973052]
[1735179314618,2.5375,197.21,197.14,2.5383]
[1735179315319,2.5373,197.23,197.17,2.538]
[1735179317719,11.11973052,197.25,197.12,11.11973052]
[1735179318021,7.0232655,197.29,197.18,11.11973052]
[1735179318318,10.1832655,197.3,197.19,3.1628]
[1735179318821,2.5366,197.29,197.22,2.5373]
[1735179319236,2.5366,197.29,197.23,2.5371]
[1735179319411,10.1832655,197.3,197.19,3.1628]
[1735179319615,5.6963,197.3,197.19,4.8003]
[1735179320523,2.5363,197.3,197.19,4.8003]
[1735179320922,2.5365,197.29,197.23,2.5371]
[1735179322619,7.0232655,197.36,197.19,4.8003]
[1735179322825,10.1832655,197.36,197.24,11.11973052]
[1735179323124,3.16,197.36,197.24,11.11973052]
[1735179323317,7.0232655,197.37,197.31,2.5362]
[1735179324526,2.5355,197.37,197.31,2.5362]
[1735179328721,11.11973052,197.38,197.28,3.2565]
[1735179328936,2.5358,197.34,197.28,5.7931]
[1735179329230,11.11973052,197.38,197.28,1.6165]
[1735179329430,2.5361,197.32,197.27,2.5367]
[1735179329621,2.5361,197.32,197.24,11.11973052]
[1735179330632,11.11973052,197.38,197.24,11.11973052]
[1735179330833,2.5359,197.33,197.24,11.11973052]
[1735179331431,2.5359,197.33,197.27,2.5366]
[1735179332029,2.5361,197.32,197.27,2.5366]
[1735179333332,2.5363,197.3,197.26,2.5368]
[1735179334433,18.14299602,197.38,197.26,2.5368]
[1735179334735,2.5362,197.31,197.26,2.5368]
[1735179334928,2.5362,197.31,197.24,11.11973052]
[1735179335136,2.5362,197.31,197.27,2.5367]
[1735179338937,2.5365,197.29,197.22,3.212]
[1735179339153,3.18,197.34,197.22,6.392]
[1735179339430,2.5371,197.25,197.21,2.5375]
[1735179339635,2.5371,197.25,197.1,5.0776]
[1735179339636,3.18,197.28,197.17,11.11973052]
[1735179339829,3.18,197.28,197.14,19.15463052]
[1735179340026,3.18,197.28,197.18,2.5378]
[1735179340635,11.11973052,197.26,197.14,19.15463052]
[1735179342339,11.11973052,197.26,197.17,2.538]
[1735179342544,11.11973052,197.26,197.14,19.15463052]
[1735179343040,11.11973052,197.26,197.18,2.538]
[1735179346139,11.11973052,197.26,197.14,3.1855]
[1735179346339,2.5379,197.2,197.14,3.1855]
[1735179346934,2.5379,197.2,197.1,11.11973052]
[1735179347141,3.18,197.22,197.1,11.11973052]
[1735179347340,3.18,197.22,197.07,11.11973052]
[1735179348540,2.5382,197.17,197.11,2.5389]
[1735179349534,2.5382,197.17,197.12,2.5388]
[1735179350041,2.5382,197.17,197.07,11.11973052]
[1735179350246,2.5382,197.17,197.1,2.539]
[1735179350846,2.5382,197.17,197.11,2.5389]
[1735179351243,2.5384,197.16,197.07,11.11973052]
[1735179351443,11.11973052,197.2,197.1,2.5391]
[1735179351647,11.11973052,197.2,197.07,11.11973052]
[1735179352042,2.5386,197.15,197.09,2.5392]
[1735179352542,28.08657145,197.24,197.07,11.11973052]
[1735179352743,31.26657145,197.23,197.1,11.11973052]
[1735179353453,2.5381,197.18,197.12,2.5388]
[1735179354447,11.11973052,197.21,197.1,11.11973052]
[1735179354747,11.11973052,197.24,197.1,11.11973052]
[1735179354949,3.18,197.23,197.1,11.11973052]
[1735179355145,11.11973052,197.24,197.13,11.11973052]
[1735179355352,3.18,197.25,197.13,11.11973052]
[1735179355542,28.08657145,197.28,197.16,11.11973052]
[1735179355749,5.717,197.27,197.16,11.11973052]
[1735179355948,2.537,197.27,197.16,11.11973052]
[1735179356149,31.26657145,197.28,197.16,11.11973052]
[1735179356346,3.18,197.28,197.16,14.29973052]
[1735179356543,3.18,197.28,197.23,2.5374]
[1735179356743,2.5368,197.29,197.23,2.5374]
[1735179358352,3.18,197.3,197.23,2.5374]
[1735179358553,2.5368,197.28,197.23,2.5374]
[1735179360851,2.5368,197.28,197.19,11.11973052]
[1735179361063,2.5371,197.26,197.16,11.11973052]
[1735179361959,2.5373,197.25,197.16,11.11973052]
[1735179362359,7.0232655,197.33,197.21,11.11973052]
[1735179362566,7.0232655,197.33,197.24,11.11973052]
[1735179363064,7.0232655,197.33,197.27,11.11973052]
[1735179363264,28.08657145,197.39,197.27,14.29973052]
[1735179363465,28.08657145,197.39,197.33,2.536]
[1735179364171,30.62197145,197.39,197.34,2.536]
[1735179364566,2.5354,197.39,197.34,2.536]
[1735179364761,1.5391,197.41,197.35,2.5359]
[1735179364762,4.0743,197.41,197.35,2.5359]
[1735179365771,2.5352,197.41,197.35,2.5359]
[1735179366075,2.535,197.42,197.35,2.5359]
[1735179366265,2.535,197.42,197.36,2.5357]
[1735179366465,3.2,197.43,197.31,4.8223]
[1735179366661,3.2,197.44,197.31,4.8223]
[1735179367062,2.5349,197.43,197.34,2.5359]
[1735179367258,3.2,197.44,197.31,4.8223]
[1735179367457,11.11973052,197.42,197.31,3.2039]
[1735179367664,2.536,197.35,197.24,11.11973052]
[1735179367865,3.2,197.37,197.24,14.31973052]
[1735179368264,2.5363,197.32,197.26,2.5369]
[1735179368974,2.5361,197.34,197.27,2.5369]
[1735179369469,2.5362,197.33,197.27,2.5369]
[1735179369866,2.5362,197.33,197.28,2.5368]
[1735179370066,11.11973052,197.36,197.24,14.31973052]
[1735179370467,11.11973052,197.36,197.27,2.5369]
[1735179371772,2.5362,197.33,197.24,14.31973052]
[1735179372570,5.7358,197.36,197.24,14.31973052]
[1735179372771,1.6154,197.4,197.27,11.11973052]
[1735179372971,3.2,197.39,197.27,11.11973052]
[1735179373170,28.08657145,197.41,197.3,11.11973052]
[1735179373476,28.08657145,197.41,197.31,4.8726]
[1735179373774,2.5351,197.41,197.31,4.8726]
[1735179374770,1.5947,197.47,197.34,11.11973052]
[1735179374976,2.5347,197.44,197.34,11.11973052]
[1735179375670,2.5343,197.48,197.42,2.5349]
[1735179375871,12.77023052,197.49,197.42,2.5349]
[1735179376072,11.11973052,197.49,197.42,2.5349]
[1735179376277,10.2232655,197.5,197.37,11.11973052]
[1735179376980,2.5344,197.47,197.41,2.535]
[1735179377274,3.2,197.5,197.41,2.535]
[1735179377475,2.5345,197.46,197.4,2.5352]
[1735179377678,2.5345,197.46,197.37,11.11973052]
[1735179379076,2.5345,197.46,197.41,2.535]
[1735179379475,2.5341,197.49,197.37,11.11973052]
[1735179379684,11.11973052,197.52,197.4,11.11973052]
[1735179379873,11.11973052,197.52,197.41,4.7873]
[1735179380675,2.5341,197.49,197.45,2.5346]
[1735179380870,11.11973052,197.52,197.45,2.5346]
[1735179381076,11.11973052,197.55,197.43,11.11973052]
[1735179381477,11.11973052,197.55,197.49,2.5341]
[1735179381677,15.87253052,197.58,197.43,11.11973052]
[1735179381978,15.87253052,197.58,197.49,2.534]
[1735179381979,2.5334,197.55,197.49,2.534]
[1735179382175,15.87253052,197.58,197.49,2.534]
[1735179382669,12.67253052,197.58,197.49,2.534]
[1735179382981,15.87253052,197.58,197.49,2.534]
[1735179383377,2.5333,197.55,197.49,2.534]
[1735179383981,15.87253052,197.58,197.42,3.2]
[1735179383982,11.11973052,197.58,197.46,11.11973052]
[1735179384277,29.73674339,197.63,197.49,11.11973052]
[1735179384477,32.26914339,197.63,197.52,11.11973052]
[1735179384672,29.73674339,197.63,197.52,11.11973052]
[1735179385179,1.65017194,197.63,197.52,11.11973052]
[1735179385378,1.65017194,197.63,197.58,2.5328]
[1735179386274,1.65017194,197.63,197.55,2.5332]
[1735179386475,11.11973052,197.67,197.55,11.11973052]
[1735179386983,2.5323,197.63,197.57,2.5329]
[1735179387475,2.5323,197.63,197.58,2.5329]
[1735179388373,2.5325,197.62,197.56,2.5331]
[1735179388576,11.11973052,197.67,197.52,11.11973052]
[1735179389283,2.5323,197.64,197.52,11.11973052]
[1735179389982,2.5323,197.63,197.57,2.533]
[1735179390777,2.5323,197.63,197.52,11.11973052]
[1735179391081,11.11973052,197.67,197.52,11.11973052]
[1735179391287,12.76163052,197.7,197.56,11.11973052]
[1735179391587,12.76163052,197.7,197.57,3.2]
[1735179391781,11.11973052,197.7,197.57,3.2]
[1735179392181,3.2,197.71,197.59,11.11973052]
[1735179392378,28.08657145,197.72,197.6,4.8087]
[1735179392885,11.11973052,197.73,197.65,2.532]
[1735179394090,11.11973052,197.73,197.6,4.8087]
[1735179394293,11.11973052,197.73,197.64,2.5322]
[1735179394593,11.11973052,197.73,197.6,15.92843052]
[1735179396290,11.11973052,197.73,197.66,2.5319]
[1735179396987,1.61061649,197.77,197.63,3.18]
[1735179397205,14.29973052,197.77,197.67,2.5318]
[1735179397691,11.11973052,197.79,197.66,11.11973052]
[1735179397889,7.0232655,197.8,197.69,11.11973052]
[1735179398086,7.0232655,197.8,197.7,1.5578]
[1735179398485,18.14299602,197.8,197.7,1.5578]
[1735179399089,18.14299602,197.8,197.7,3.1776]
[1735179399598,3.1884,197.86,197.72,11.11973052]
[1735179399786,17.48813052,197.86,197.72,11.11973052]
[1735179400186,2.5299,197.82,197.76,2.5306]
[1735179400588,7.0232655,197.92,197.78,11.11973052]
[1735179400800,18.14299602,197.92,197.8,2.5301]
[1735179401088,18.14299602,197.92,197.79,4.7626]
[1735179401285,18.14299602,197.92,197.79,4.1128]
[1735179401494,11.11973052,197.89,197.79,1.5826]
[1735179402797,11.11973052,197.89,197.8,2.53]
[1735179403098,3.18,197.93,197.79,1.5826]
[1735179403394,4.8079,197.94,197.81,11.11973052]
[1735179403898,3.2113,197.94,197.81,11.11973052]
[1735179404095,1.6056,197.94,197.86,2.5294]
[1735179404490,14.29973052,197.95,197.83,3.18]
[1735179404694,2.5285,197.94,197.87,2.5293]
[1735179405190,2.5285,197.94,197.88,2.5292]
[1735179406300,2.5285,197.94,197.87,2.5293]
[1735179409307,11.11973052,197.95,197.81,11.11973052]
[1735179409498,11.11973052,197.92,197.8,14.35363052]
[1735179409899,2.5295,197.88,197.81,2.5302]
[1735179410206,11.11973052,197.92,197.81,2.5302]
[1735179410503,14.29973052,197.92,197.81,2.5302]
[1735179411006,14.29973052,197.92,197.79,4.7626]
[1735179411007,11.11973052,197.89,197.79,4.7626]
[1735179411518,2.5295,197.87,197.81,2.5302]
[1735179411802,2.5295,197.87,197.8,11.11973052]
[1735179411803,14.29973052,197.92,197.8,11.11973052]
[1735179412401,11.11973052,197.92,197.8,11.11973052]
[1735179412597,2.5292,197.9,197.84,2.5297]
[1735179412803,3.18,197.93,197.83,11.11973052]
[1735179413199,2.5289,197.92,197.86,2.5295]
[1735179413394,11.11973052,197.95,197.86,2.5295]
[1735179414093,11.11973052,197.95,197.83,11.11973052]
[1735179414094,2.529,197.91,197.83,11.11973052]
[1735179415306,4.7799,197.99,197.86,11.11973052]
[1735179415505,11.11973052,197.98,197.86,11.11973052]
[1735179416409,2.5288,197.93,197.87,2.5294]
[1735179417716,11.11973052,197.98,197.86,11.11973052]
[1735179418616,18.14299602,197.98,197.86,11.11973052]
[1735179418916,2.5288,197.91,197.86,11.11973052]
[1735179419615,2.5288,197.91,197.86,13.64923052]
[1735179420413,2.529,197.9,197.86,11.11973052]
[1735179420613,7.0232655,197.97,197.83,11.11973052]
[1735179420811,11.11973052,197.95,197.83,11.11973052]
[1735179421214,3.18,197.94,197.84,2.5297]
[1735179422117,2.5291,197.9,197.84,2.5297]
[1735179423319,2.5292,197.89,197.84,2.5297]
[1735179423514,2.5292,197.89,197.8,1.6494]
[1735179423515,11.11973052,197.92,197.8,2.5302]
[1735179423711,2.53,197.83,197.78,11.11973052]
[1735179423911,3.18,197.88,197.78,11.11973052]
[1735179424416,2.5303,197.81,197.78,11.11973052]
[1735179425115,3.18,197.88,197.78,11.11973052]
[1735179425316,7.0232655,197.86,197.78,11.11973052]
[1735179426329,20.35738407,197.85,197.73,3.1474]
[1735179426510,11.11973052,197.83,197.68,3.28]
[1735179426711,11.11973052,197.83,197.69,11.11973052]
[1735179426712,3.28,197.82,197.69,11.11973052]
[1735179426932,6.3797,197.82,197.7,2.5315]
[1735179427923,28.08657145,197.79,197.69,13.65153052]
[1735179428125,2.5311,197.75,197.69,13.65153052]
[1735179428319,28.08657145,197.79,197.69,11.11973052]
[1735179429117,28.08657145,197.76,197.69,11.11973052]
[1735179429623,28.08657145,197.76,197.75,2.5312]
[1735179429924,28.08657145,197.76,197.75,13.65093052]
[1735179430122,56.16881588,197.77,197.75,11.11973052]
[1735179430422,56.16881588,197.77,197.76,2.5311]
[1735179431223,6.99358862,197.82,197.77,2.531]
[1735179431925,6.99358862,197.82,197.49,57.28807982]
[1735179432123,11.11973052,197.81,197.66,11.11973052]
[1735179432329,3.28,197.8,197.66,11.11973052]
[1735179432828,4.7989,197.8,197.66,11.11973052]
[1735179433128,4.7989,197.8,197.66,13.65203052]
[1735179433326,4.7989,197.8,197.66,11.11973052]
[1735179433528,27.9743545,197.75,197.66,11.11973052]
[1735179434128,41.37729339,197.75,197.66,11.11973052]
[1735179434627,2.5314,197.74,197.69,2.5319]
[1735179434928,2.5314,197.74,197.7,2.5318]
[1735179435629,27.9743545,197.76,197.66,11.11973052]
[1735179436231,31.2543545,197.79,197.66,11.11973052]
[1735179436931,41.36634569,197.78,197.66,11.11973052]
[1735179437329,52.48607621,197.78,197.64,4.6988]
[1735179437543,11.11973052,197.75,197.64,1.5268]
[1735179437831,2.532,197.69,197.65,2.5325]
[1735179438432,2.5319,197.7,197.65,2.5325]
[1735179440129,3.28,197.73,197.62,11.11973052]
[1735179440330,11.11973052,197.72,197.61,1.6458]
[1735179440930,11.11973052,197.72,197.62,2.5328]
[1735179441430,11.11973052,197.72,197.6,2.533]
[1735179441634,4.7529,197.71,197.6,2.533]
[1735179441836,2.5326,197.65,197.6,2.533]
[1735179442331,2.5328,197.63,197.56,14.39973052]
[1735179442735,3.28,197.67,197.56,11.11973052]
[1735179442931,27.9743545,197.72,197.65,11.11973052]
[1735179443329,27.9743545,197.72,197.67,2.5321]
[1735179443526,27.9743545,197.72,197.65,11.11973052]
[1735179443735,2.5315,197.73,197.65,11.11973052]
[1735179443928,2.5315,197.73,197.63,4.7579]
[1735179444127,11.11973052,197.76,197.63,4.7579]
[1735179444337,2.532,197.69,197.63,4.7579]
[1735179444933,2.532,197.69,197.64,2.5326]
[1735179445439,2.532,197.69,197.63,4.7579]
[1735179446338,11.11973052,197.73,197.63,4.7579]
[1735179446540,2.5319,197.7,197.65,2.5325]
[1735179447238,2.5317,197.71,197.66,2.5324]
[1735179448945,11.11973052,197.76,197.63,4.7579]
[1735179449740,2.5314,197.74,197.66,2.5323]
[1735179449941,11.11973052,197.76,197.63,4.7579]
[1735179451045,2.5317,197.72,197.66,2.5323]
[1735179451937,11.11973052,197.76,197.66,2.5323]
[1735179452838,2.5317,197.72,197.66,2.5323]
[1735179453149,11.11973052,197.76,197.66,2.5323]
[1735179453841,2.5317,197.71,197.66,2.5323]
[1735179455936,11.11973052,197.76,197.66,2.5323]
[1735179456252,11.11973052,197.7,197.56,11.11973052]
[1735179456440,14.43973052,197.7,197.56,11.11973052]
[1735179456644,11.11973052,197.67,197.53,11.11973052]
[1735179456840,11.11973052,197.67,197.53,14.43973052]
[1735179458841,2.5325,197.65,197.6,2.533]
[1735179459041,2.5325,197.65,197.53,14.43973052]
[1735179459646,2.5325,197.65,197.56,11.11973052]
[1735179459845,27.9743545,197.68,197.56,11.11973052]
[1735179460346,2.5327,197.64,197.6,2.5331]
[1735179460544,2.5327,197.64,197.56,11.11973052]
[1735179460744,11.11973052,197.67,197.56,11.11973052]
[1735179460945,2.5331,197.61,197.53,14.43973052]
[1735179461141,2.5331,197.61,197.52,4.9274]
[1735179461142,11.11973052,197.61,197.52,4.9274]
[1735179461943,11.11973052,197.61,197.47,14.43973052]
[1735179462142,3.32,197.64,197.44,11.11973052]
[1735179462143,11.11973052,197.58,197.44,11.11973052]
[1735179462350,2.5342,197.52,197.47,2.5348]
[1735179462548,3.32,197.57,197.44,11.11973052]
[1735179462752,3.32,197.57,197.47,11.11973052]
[1735179462951,6.99358862,197.56,197.54,2.5339]
[1735179463455,6.99358862,197.56,197.5,11.11973052]
[1735179463654,6.99358862,197.56,197.49,3.32]
[1735179463655,6.99358862,197.56,197.55,2.5338]
[1735179464059,6.99358862,197.61,197.56,2.5336]
[1735179464955,3.32,197.63,197.56,2.5336]
[1735179465356,2.5333,197.59,197.53,2.534]
[1735179465556,3.32,197.63,197.53,2.534]
[1735179465756,3.32,197.63,197.51,4.6637]
[1735179465952,2.5333,197.59,197.51,4.6637]
[1735179466357,2.5333,197.59,197.52,2.534]
[1735179466657,2.5335,197.58,197.52,2.534]
[1735179466955,2.5335,197.58,197.53,2.534]
[1735179468256,27.9743545,197.62,197.51,22.38580017]
[1735179469457,27.9743545,197.62,197.6,2.5331]
[1735179469959,2.5326,197.64,197.6,2.5331]
[1735179470551,5.8524,197.66,197.61,2.533]
[1735179470959,6.99358862,197.67,197.55,21.04210017]
[1735179471157,27.9743545,197.68,197.66,2.5324]
[1735179471965,30.5065545,197.68,197.62,2.5328]
[1735179472161,30.5065545,197.68,197.6,4.8525]
[1735179472457,2.532,197.7,197.64,2.5326]
[1735179472860,31.2943545,197.72,197.6,4.8525]
[1735179473056,2.5318,197.71,197.65,2.5325]
[1735179473256,6.99358862,197.69,197.65,2.5325]
[1735179474056,9.52558862,197.69,197.64,2.5326]
[1735179474754,9.52558862,197.69,197.65,2.5324]
[1735179475353,6.99358862,197.69,197.65,2.5324]
[1735179475762,6.99358862,197.69,197.66,2.5323]
[1735179477862,6.99358862,197.69,197.6,4.8525]
[1735179477863,27.9743545,197.74,197.61,3.32]
[1735179478063,2.5315,197.73,197.68,2.5321]
[1735179478258,27.9743545,197.74,197.61,3.32]
[1735179478459,27.9743545,197.74,197.69,2.5319]
[1735179478661,9.52478862,197.75,197.69,2.5319]
[1735179480063,2.5312,197.75,197.69,2.5319]
[1735179481163,2.5312,197.75,197.63,17.72210017]
[1735179481365,2.5311,197.76,197.63,17.72210017]
[1735179482065,10.31358862,197.77,197.63,17.72210017]
[1735179482461,2.5315,197.74,197.68,2.532]
[1735179482665,3.32,197.77,197.63,17.72210017]
[1735179483068,2.5312,197.76,197.7,2.5317]
[1735179483471,6.99358862,197.78,197.67,17.72210017]
[1735179483667,6.99358862,197.78,197.74,2.5313]
[1735179483870,6.99358862,197.78,197.68,8.1877]
[1735179484264,6.99358862,197.78,197.71,11.0576513]
[1735179484470,6.99358862,197.81,197.71,11.0576513]
[1735179485168,2.5309,197.78,197.73,2.5314]
[1735179485973,3.32,197.82,197.71,11.0576513]
[1735179486170,11.0576513,197.81,197.71,2.5317]
[1735179487062,2.531,197.77,197.71,2.5317]
[1735179487466,11.0576513,197.81,197.71,2.5317]
[1735179487666,2.5312,197.76,197.71,2.5317]
[1735179490364,27.9743545,197.83,197.74,2.5313]
[1735179490564,27.9743545,197.83,197.74,11.0576513]
[1735179491569,6.99358862,197.87,197.74,11.0576513]
[1735179491870,2.5302,197.83,197.74,11.0576513]
[1735179493669,2.5302,197.83,197.78,2.5307]
[1735179495465,3.34,197.87,197.73,3.36]
[1735179495670,11.0576513,197.84,197.7,11.0576513]
[1735179496268,2.5309,197.78,197.73,2.5314]
[1735179497373,11.0576513,197.84,197.73,2.5314]
[1735179497669,11.0576513,197.84,197.7,11.0576513]
[1735179498176,11.0576513,197.84,197.73,2.5314]
[1735179499470,2.5309,197.78,197.73,2.5314]
[1735179501277,2.5309,197.78,197.7,11.0576513]
[1735179502670,2.5309,197.78,197.73,2.5313]
[1735179503075,14.3976513,197.81,197.68,4.8677]
[1735179503379,11.0576513,197.78,197.65,11.0576513]
[1735179503571,2.5317,197.72,197.65,11.0576513]
[1735179503770,2.5317,197.72,197.67,2.5322]
[1735179503978,2.5314,197.74,197.65,11.0576513]
[1735179504371,2.5314,197.74,197.68,11.0576513]
[1735179504978,2.5312,197.76,197.68,11.0576513]
[1735179505579,2.5321,197.69,197.62,11.0576513]
[1735179506078,2.5321,197.69,197.64,2.5325]
[1735179506576,3.34,197.73,197.64,2.5325]
[1735179506877,3.34,197.73,197.62,11.0576513]
[1735179507874,2.5323,197.67,197.62,13.5904513]
[1735179508475,27.9743545,197.71,197.62,11.0576513]
[1735179508675,2.5321,197.69,197.64,2.5326]
[1735179509678,31.3143545,197.73,197.62,11.0576513]
[1735179509978,0.82988833,197.72,197.62,11.0576513]
[1735179510176,2.532,197.69,197.61,7.3873]
[1735179510378,31.3143545,197.73,197.61,7.3873]
[1735179510577,0.8299396,197.72,197.61,5.7352]
[1735179510978,2.5325,197.65,197.61,3.2022]
[1735179511378,2.5323,197.67,197.61,1.5421]
[1735179511576,27.9743545,197.69,197.61,1.5421]
[1735179511977,6.99358862,197.68,197.61,1.5421]
[1735179512780,20.98076588,197.69,197.61,1.5421]
[1735179512781,27.9743545,197.69,197.61,1.5421]
[1735179513482,30.5063545,197.69,197.64,2.5326]
[1735179513682,2.532,197.69,197.64,2.5326]
[1735179515485,2.532,197.69,197.63,2.5327]
[1735179516184,2.5321,197.68,197.63,2.5327]
[1735179517777,6.99358862,197.73,197.62,11.0576513]
[1735179517983,6.99358862,197.73,197.65,11.0576513]
[1735179518492,41.38707276,197.74,197.65,11.0576513]
[1735179518681,41.38707276,197.74,197.71,2.5317]
[1735179518987,41.38707276,197.74,197.65,11.0576513]
[1735179519579,13.41271826,197.74,197.68,11.0576513]
[1735179519779,27.9743545,197.79,197.71,11.0576513]
[1735179520188,27.9743545,197.79,197.74,11.0576513]
[1735179520489,27.9743545,197.79,197.78,2.5308]
[1735179520686,71.02476887,197.8,197.77,11.0576513]
[1735179520888,68.51926887,197.8,197.79,2.5307]
[1735179521188,11.0576513,197.84,197.71,11.0576513]
[1735179521383,3.1586,197.81,197.71,11.0576513]
[1735179521583,2.5308,197.78,197.71,11.0576513]
[1735179521785,3.1586,197.81,197.71,11.0576513]
[1735179523298,2.5308,197.79,197.73,2.5315]
[1735179523487,3.1586,197.81,197.71,11.0576513]
[1735179523893,2.5309,197.78,197.72,2.5316]
[1735179524386,3.1586,197.81,197.71,11.0576513]
[1735179524793,3.1586,197.81,197.74,11.0576513]
[1735179526189,3.1586,197.81,197.77,2.5308]
[1735179526589,3.1586,197.81,197.74,11.0576513]
[1735179528493,3.1586,197.81,197.77,2.5308]
[1735179528792,3.1586,197.81,197.74,11.0576513]
[1735179528987,2.5298,197.87,197.81,2.5304]
[1735179529184,11.0576513,197.9,197.81,2.5304]